fUST/lending_fUST_20250615
["ID","MTS","AMOUNT","RATE_DAILY","PERIOD"]
[365931687,1749990643638,-2000.0,0.000248,2]
[365931689,1749990643647,-191.16713,0.000248,7]
[365931691,1749990643656,-151.0,0.000248,7]
[365931693,1749990643665,-2375.5382764,0.000248,2]
[365931695,1749990643674,-151.0,0.000248,7]
[365931697,1749990643683,-151.0,0.000248,7]
[365931699,1749990643692,-670.46,0.000248,31]
[365931701,1749990643702,-670.46,0.000248,31]
[365931703,1749990643711,-670.46,0.000248,31]
[365931705,1749990643721,-670.46,0.000248,31]
[365931707,1749990643730,-670.46,0.000248,31]
[365931709,1749990643739,-670.46,0.000248,31]
[365931711,1749990643748,-670.46,0.000248,31]
[365931713,1749990643757,-670.46,0.000248,31]
[365931715,1749990643766,-670.46,0.000248,31]
[365931717,1749990643775,-670.46,0.000248,31]
[365931719,1749990643784,-670.46,0.000248,31]
[365931721,1749990643793,-670.46,0.000248,31]
[365931723,1749990643802,-670.46,0.000248,31]
[365931725,1749990643812,-670.46,0.000248,31]
[365931727,1749990643821,-670.46,0.000248,31]
[365931728,1749990643831,-670.46,0.000248,31]
[365931731,1749990643840,-151.0,0.000248,7]
[365931733,1749990643849,-481.839314,0.000248,7]
[365931735,1749990643858,-151.0,0.000248,7]
[365931737,1749990643868,-481.839314,0.000248,7]
[365931739,1749990643877,-400.24641035,0.000248,120]
[365931741,1749990643886,-151.0,0.000248,7]
[365931743,1749990643895,-9459.04612187,0.000248,120]
[365931745,1749990643904,-151.0,0.000248,7]
[365931747,1749990643913,-154.321202,0.000248,7]
[365931749,1749990643922,-2375.53827636,0.00024815,2]
[365931751,1749990643935,-5329.61895121,0.00024815,2]
[365931753,1749990643945,-5000.0,0.00024815,2]
[365931755,1749990643954,-5000.0,0.00024815,2]
[365931757,1749990643963,-5000.0,0.00024815,2]
[365931759,1749990643974,-5000.0,0.00024815,2]
[365931761,1749990643984,-431.0,0.00024822,2]
[365931763,1749990643993,-2375.53827636,0.0002483,2]
[365931765,1749990644002,-500.0,0.00024831,2]
[365931767,1749990644013,-2375.53827636,0.00024844,2]
[365931769,1749990644023,-1594.02300204,0.00024848,2]
[365931771,1749990644034,-431.0,0.0002485,2]
[365931773,1749990644043,-2375.53827636,0.00024859,2]
[365931775,1749990644052,-223.0315306,0.0002486,2]
[365931777,1749990644061,-1844.4888242,0.00024866,12]
[365931779,1749990644070,-870.75555048,0.00024874,2]
[365931784,1749990644112,-575.32,0.00019726,2]
[365931786,1749990644122,-99.22047028,0.00024874,2]
[365931792,1749990644161,460.0,0.00019178,2]
[365931797,1749990644197,460.0,0.00019178,2]
[365931805,1749990644270,-460.0,0.00019452,2]
[365931807,1749990644280,-460.0,0.00019726,2]
[365931809,1749990644289,-460.0,0.0002,2]
[365931811,1749990644298,-2160.0,0.00023804,2]
[365931813,1749990644307,-213.52,0.00023825,10]
[365931815,1749990644316,-151.0,0.00024,7]
[365931817,1749990644325,-151.0,0.0002465,7]
[365931819,1749990644335,-151.0,0.000248,7]
[365931821,1749990644343,-1405.5622556,0.00024874,2]
[365931823,1749990644352,-168.0,0.00024877,2]
[365931825,1749990644361,-431.0,0.00024877,2]
[365931827,1749990644371,-2375.53827636,0.00024889,2]
[365931828,1749990644404,-734.53,0.00024893,5]
[365931829,1749990644413,-1746.0,0.000249,3]
[365931830,1749990644423,-1746.0,0.000249,3]
[365931831,1749990644431,-1746.0,0.000249,3]
[365931832,1749990644441,-1746.0,0.000249,3]
[365931833,1749990644450,-1746.0,0.000249,3]
[365931834,1749990644459,-1746.0,0.000249,3]
[365931835,1749990644468,-432.71693277,0.000249,3]
[365931836,1749990644478,-317.0,0.000249,3]
[365931837,1749990644486,-317.0,0.000249,3]
[365931838,1749990644496,-317.0,0.000249,3]
[365931839,1749990644505,-317.0,0.000249,3]
[365931840,1749990644514,-317.0,0.000249,3]
[365931841,1749990644523,-317.0,0.000249,3]
[365931842,1749990644534,-317.0,0.000249,3]
[365931843,1749990644543,-317.0,0.000249,3]
[365931844,1749990644552,-324.34362012,0.000249,3]
[365931845,1749990644561,-151.0,0.000249,7]
[365931846,1749990644570,-151.0,0.000249,7]
[365931847,1749990644579,-151.0,0.000249,7]
[365931848,1749990644587,-151.0,0.000249,7]
[365931849,1749990644596,-151.0,0.000249,7]
[365931850,1749990644606,-151.0,0.000249,7]
[365931851,1749990644615,-151.0,0.000249,7]
[365931852,1749990644624,-229.86375354,0.000249,3]
[365931854,1749990644634,-160.0,0.000249,3]
[365931856,1749990644643,-151.0,0.000249,7]
[365931858,1749990644652,-154.770361,0.000249,7]
[365931860,1749990644661,-481.839314,0.000249,7]
[365931862,1749990644670,-151.0,0.000249,7]
[365931864,1749990644679,-481.839314,0.000249,7]
[365931866,1749990644689,-90051.35907516,0.000249,2]
[365931868,1749990644700,-12782.55921474,0.000249,2]
[365931872,1749990644731,460.0,0.00019178,2]
[365932174,1749990647697,-2.60535111,0.00019452,2]
[365932391,1749990649739,420.0,0.00019178,2]
[365932579,1749990651685,460.0,0.00019178,2]
[365933088,1749990657230,460.0,0.00019178,2]
[365933158,1749990657872,460.0,0.00019178,2]
[365933366,1749990659780,460.0,0.00019178,2]
[365933459,1749990660800,460.0,0.00019178,2]
[365934099,1749990667842,460.0,0.00019178,2]
[365934983,1749990677800,460.0,0.00019178,2]
[365936584,1749990697326,400.0,0.00019178,2]
[365936667,1749990706682,460.0,0.00019178,2]
[365936668,1749990707160,460.0,0.00019178,2]
[365936673,1749990711094,460.0,0.00019178,2]
[365936674,1749990713467,460.0,0.00019178,2]
[365936675,1749990715408,157.93562872,0.00013699,2]
[365936678,1749990730921,460.0,0.00019178,2]
[365936679,1749990738396,648.51,0.00019178,2]
[365936680,1749990745314,460.0,0.00019178,2]
[365936681,1749990749011,411.94722754,0.00018867,2]
[365936683,1749990780920,-205.97361377,0.00018868,2]
[365936684,1749990780942,-200.03128008,0.00019078,2]
[365936685,1749990780963,-410.56437132,0.00019178,2]
[365936686,1749990780987,-460.0,0.00019178,2]
[365936687,1749990781008,-410.0,0.00019178,2]
[365936688,1749990781031,-460.0,0.00019178,2]
[365936689,1749990781053,-460.0,0.00019178,2]
[365936690,1749990781076,-527.64,0.00019178,2]
[365936691,1749990781100,-500.0,0.00019178,2]
[365936692,1749990781121,-460.0,0.00019178,2]
[365936693,1749990781144,-460.0,0.00019178,2]
[365936694,1749990781166,-200.03128008,0.00019352,2]
[365936695,1749990781188,-160.0,0.00019448,2]
[365936696,1749990781215,-300.0,0.0001945,2]
[365936697,1749990781237,-460.0,0.0001945,2]
[365936698,1749990781260,-460.0,0.0001945,2]
[365936699,1749990781281,-139.75945475,0.00019451,2]
[365936704,1749990844210,464.495551,0.00013699,2]
[365936705,1749990870811,200.0,0.00024035,120]
[365936707,1749990903877,-163.74806093,0.00018,2]
[365936712,1749991017728,372.9841686,0.00017922,2]
[365936713,1749991050636,164.77889102,0.00017829,2]
[365936716,1749991063234,24900.0,0.00017381,2]
[365936717,1749991146787,-280.98251109,0.00018,2]
[365936718,1749991146810,-240.79549263,0.00018181,2]
[365936719,1749991146836,-1238.61524294,0.00018281,2]
[365936720,1749991146860,-300.0,0.00018379,2]
[365936721,1749991146883,-500.0,0.0001838,2]
[365936722,1749991146906,-596.41095024,0.0001838,2]
[365936723,1749991146931,-105.1958031,0.0001838,2]
[365936724,1749991165290,-394.8041969,0.0001838,2]
[365936725,1749991165312,-496.1958031,0.0001838,2]
[365936726,1749991203441,-163.82220355,0.00018,2]
[365936727,1749991203468,-36.27199027,0.00018379,2]
[365936728,1749991208232,256.3657765,0.00017898,2]
[365936729,1749991212798,-263.72800973,0.00018379,2]
[365936730,1749991212821,-85.35719527,0.00018379,2]
[365936732,1749991232591,-378.23402232,0.00018379,2]
[365936735,1749991279765,-382.9672251,0.00018279,2]
[365936736,1749991321854,-462.52439283,0.00018279,2]
[365936740,1749991343247,14027.9074732,0.0001738,2]
[365936741,1749991343806,-238.29671966,0.00018279,2]
[365936742,1749991343827,-139.93730266,0.00018378,2]
[365936743,1749991357834,-270.17652984,0.00018378,2]
[365936745,1749991360045,-430.17652984,0.00018378,2]
[365936746,1749991562843,-378.23402232,0.00018278,2]
[365936747,1749991593572,-168.03110711,0.00018376,2]
[365936748,1749991630142,-300.0,0.00018375,2]
[365936749,1749991630165,-457.75745506,0.00018376,2]
[365936750,1749991631073,-42.24254494,0.00018376,2]
[365936751,1749991631096,-336.77106431,0.00018376,2]
[365936752,1749991631123,-500.0,0.00018376,2]
[365936753,1749991631147,-500.0,0.00018376,2]
[365936754,1749991631169,-500.0,0.00018376,2]
[365936755,1749991631193,-500.0,0.00018376,2]
[365936756,1749991631217,-500.0,0.00018376,2]
[365936757,1749991631240,-500.0,0.00018376,2]
[365936758,1749991631266,-10.36944244,0.00018376,2]
[365936759,1749991638282,-489.63055756,0.00018376,2]
[365936760,1749991638304,-500.0,0.00018376,2]
[365936761,1749991638328,-500.0,0.00018376,2]
[365936762,1749991638350,-593.15693713,0.00018376,2]
[365936763,1749991638373,-500.0,0.00018376,2]
[365936764,1749991638395,-500.0,0.00018376,2]
[365936765,1749991638417,-412.26374257,0.00018376,2]
[365936766,1749991638439,-500.0,0.00018376,2]
[365936767,1749991638461,-500.0,0.00018376,2]
[365936768,1749991638481,-500.0,0.00018376,2]
[365936769,1749991638502,-500.0,0.00018376,2]
[365936770,1749991638524,-579.98774313,0.00018376,2]
[365936771,1749991638545,-500.0,0.00018376,2]
[365936772,1749991638567,-500.0,0.00018376,2]
[365936773,1749991638590,-500.0,0.00018376,2]
[365936774,1749991638612,-500.0,0.00018376,2]
[365936775,1749991638636,-500.0,0.00018376,2]
[365936776,1749991638658,-500.0,0.00018376,2]
[365936777,1749991638680,-500.0,0.00018376,2]
[365936778,1749991638701,-500.0,0.00018376,2]
[365936779,1749991638877,-500.0,0.00018376,2]
[365936780,1749991638900,-500.0,0.00018376,2]
[365936781,1749991638921,-500.0,0.00018376,2]
[365936782,1749991638944,-500.0,0.00018376,2]
[365936783,1749991638965,-500.0,0.00018376,2]
[365936784,1749991638987,-500.0,0.00018376,2]
[365936785,1749991639010,-500.0,0.00018376,2]
[365936786,1749991639032,-500.0,0.00018376,2]
[365936787,1749991639056,-500.0,0.00018376,2]
[365936788,1749991639079,-500.0,0.00018376,2]
[365936789,1749991639102,-500.0,0.00018376,2]
[365936790,1749991639125,-500.0,0.00018376,2]
[365936791,1749991639146,-500.0,0.00018376,2]
[365936792,1749991639168,-500.0,0.00018376,2]
[365936793,1749991639190,-570.60742845,0.00018376,2]
[365936794,1749991639212,-500.0,0.00018376,2]
[365936795,1749991639234,-500.0,0.00018376,2]
[365936796,1749991639260,-500.0,0.00018376,2]
[365936797,1749991639282,-500.0,0.00018376,2]
[365936798,1749991639305,-500.0,0.00018376,2]
[365936799,1749991639330,-500.0,0.00018376,2]
[365936800,1749991639353,-500.0,0.00018376,2]
[365936801,1749991639376,-500.0,0.00018376,2]
[365936802,1749991639398,-500.0,0.00018376,2]
[365936803,1749991639420,-838.96889289,0.00018376,2]
[365936804,1749991639442,-300.0,0.00018376,2]
[365936805,1749991639466,-500.0,0.00018377,2]
[365936806,1749991639489,-500.0,0.00018377,2]
[365936807,1749991639513,-500.0,0.00018377,2]
[365936808,1749991639537,-500.0,0.00018377,2]
[365936809,1749991639565,-500.0,0.00018377,2]
[365936810,1749991639596,-500.0,0.00018377,2]
[365936811,1749991639621,-500.0,0.00018377,2]
[365936812,1749991639646,-500.0,0.00018377,2]
[365936813,1749991639670,-500.0,0.00018377,2]
[365936814,1749991639694,-500.0,0.00018377,2]
[365936815,1749991639718,-500.0,0.00018377,2]
[365936816,1749991639743,-500.0,0.00018377,2]
[365936817,1749991639766,-594.70905694,0.00018377,2]
[365936818,1749991639788,-9461.34149657,0.00018378,2]
[365936819,1749991653529,-345.49161793,0.00018381,2]
[365936821,1749991684379,-378.23402232,0.00018197,2]
[365936822,1749991689892,-169.82347016,0.00018197,2]
[365936824,1749991698307,-223.0,0.00018197,2]
[365936825,1749991707754,-369.82347016,0.00018197,2]
[365936826,1749991714545,-382.9672251,0.00018197,2]
[365936827,1749991716707,-378.23402232,0.00018197,2]
[365936831,1749991737681,-155.0,0.00018197,2]
[365936832,1749991740314,-307.52439283,0.00018197,2]
[365936833,1749991751084,-2635.39339711,0.00018197,2]
[365936834,1749991751107,-500.0,0.00018381,2]
[365936835,1749991751130,-500.0,0.00018381,2]
[365936836,1749991751152,-276.96398771,0.00018381,2]
[365936837,1749991751173,-460.5397134,0.00018381,2]
[365936838,1749991751195,-500.0,0.00018381,2]
[365936839,1749991751217,-397.7764159,0.00018381,2]
[365936840,1749991751239,-454.79521524,0.00018381,2]
[365936841,1749991751261,-500.0,0.00018381,2]
[365936842,1749991751283,-500.0,0.00018381,2]
[365936843,1749991751304,-500.0,0.00018381,2]
[365936844,1749991751326,-500.0,0.00018381,2]
[365936845,1749991751349,-500.0,0.00018381,2]
[365936846,1749991751374,-391.04190425,0.00018381,2]
[365936847,1749991751396,-500.0,0.00018381,2]
[365936848,1749991751419,-135.54427158,0.00018381,2]
[365936849,1749991751441,-155.0,0.00018381,2]
[365936850,1749991751466,-10000.0,0.00018382,2]
[365936851,1749991751488,-1389.83383635,0.00018802,2]
[365936852,1749991751510,-1291.8558133,0.000189,2]
[365936853,1749991751533,-901.03554261,0.00019078,2]
[365936854,1749991751553,-2209.33190732,0.00019166,2]
[365936855,1749991751577,-500.0,0.00019177,2]
[365936856,1749991751601,-500.0,0.00019177,2]
[365936857,1749991751624,-500.0,0.00019177,2]
[365936858,1749991751648,-500.0,0.00019177,2]
[365936859,1749991751671,-500.0,0.00019177,2]
[365936860,1749991751695,-500.0,0.00019177,2]
[365936861,1749991751717,-500.0,0.00019177,2]
[365936862,1749991751741,-500.0,0.00019177,2]
[365936863,1749991751764,-500.0,0.00019177,2]
[365936864,1749991751787,-500.0,0.00019177,2]
[365936865,1749991751809,-500.0,0.00019177,2]
[365936866,1749991751832,-253.95080605,0.00019177,2]
[365936867,1749991751852,-423.24721018,0.00019178,2]
[365936868,1749991751873,-460.0,0.00019178,2]
[365936869,1749991751896,-460.0,0.00019178,2]
[365936870,1749991751916,-524.85652051,0.00019178,2]
[365936871,1749991751937,-470.06429892,0.00019178,2]
[365936872,1749991751958,-460.0,0.00019178,2]
[365936873,1749991751980,-460.0,0.00019178,2]
[365936874,1749991752001,-464.1069756,0.00019178,2]
[365936875,1749991752023,-460.0,0.00019178,2]
[365936876,1749991752044,-460.0,0.00019178,2]
[365936877,1749991752065,-460.0,0.00019178,2]
[365936878,1749991752087,-567.69083211,0.00019178,2]
[365936879,1749991752108,-465.75242513,0.00019178,2]
[365936880,1749991752128,-511.92488707,0.00019178,2]
[365936881,1749991752149,-565.71347626,0.00019178,2]
[365936882,1749991752169,-460.0,0.00019178,2]
[365936883,1749991752190,-460.0,0.00019178,2]
[365936884,1749991752211,-460.0,0.00019178,2]
[365936885,1749991752231,-517.48832854,0.00019178,2]
[365936886,1749991752252,-460.0,0.00019178,2]
[365936887,1749991752273,-460.0,0.00019178,2]
[365936888,1749991752295,-460.0,0.00019178,2]
[365936889,1749991752316,-460.0,0.00019178,2]
[365936890,1749991752338,-551.36280529,0.00019178,2]
[365936891,1749991752359,-600.44486233,0.00019178,2]
[365936892,1749991752382,-450.70968656,0.00019178,2]
[365936893,1749991752403,-460.0,0.00019178,2]
[365936894,1749991752424,-462.62002349,0.00019178,2]
[365936895,1749991752445,-533.28083815,0.00019178,2]
[365936896,1749991752468,-460.25575443,0.00019178,2]
[365936897,1749991752491,-460.0,0.00019178,2]
[365936898,1749991752511,-460.0,0.00019178,2]
[365936899,1749991752532,-335.27128473,0.00019178,2]
[365936900,1749991758013,-378.23402232,0.00018986,2]
[365936901,1749991763144,-4621.76597768,0.00018986,2]
[365936902,1749991763166,-124.72871527,0.00019178,2]
[365936903,1749991763188,-460.0,0.00019178,2]
[365936904,1749991763210,-471.10977928,0.00019178,2]
[365936905,1749991763231,-522.60994498,0.00019178,2]
[365936906,1749991763254,-461.92134131,0.00019178,2]
[365936907,1749991763276,-460.0,0.00019178,2]
[365936908,1749991763298,-460.0,0.00019178,2]
[365936909,1749991763320,-485.315503,0.00019178,2]
[365936910,1749991763464,-460.0,0.00019178,2]
[365936911,1749991763487,-460.0,0.00019178,2]
[365936912,1749991763510,-461.35603979,0.00019178,2]
[365936913,1749991763533,-461.63834265,0.00019178,2]
[365936914,1749991763555,-460.0,0.00019178,2]
[365936915,1749991763577,-460.0,0.00019178,2]
[365936916,1749991763601,-460.0,0.00019178,2]
[365936917,1749991763632,-479.1488254,0.00019178,2]
[365936918,1749991763660,-399.42661617,0.00019178,2]
[365936919,1749991763684,-460.0,0.00019178,2]
[365936920,1749991763708,-430.0,0.00019178,2]
[365936921,1749991763732,-460.0,0.00019178,2]
[365936922,1749991763756,-460.0,0.00019178,2]
[365936923,1749991763778,-460.0,0.00019178,2]
[365936924,1749991763801,-460.0,0.00019178,2]
[365936925,1749991763823,-460.0,0.00019178,2]
[365936926,1749991763845,-450.77734208,0.00019178,2]
[365936927,1749991763868,-504.70496106,0.00019178,2]
[365936928,1749991763891,-410.0,0.00019178,2]
[365936929,1749991763914,-460.0,0.00019178,2]
[365936930,1749991763936,-390.0,0.00019178,2]
[365936931,1749991763959,-460.0,0.00019178,2]
[365936932,1749991763985,-446.69403086,0.00019178,2]
[365936933,1749991769252,-13.30596914,0.00019178,2]
[365936934,1749991769274,-460.0,0.00019178,2]
[365936935,1749991769295,-460.0,0.00019178,2]
[365936936,1749991769317,-269.47313754,0.00019178,2]
[365936937,1749991769338,-460.0,0.00019178,2]
[365936938,1749991769360,-460.0,0.00019178,2]
[365936939,1749991769384,-460.0,0.00019178,2]
[365936940,1749991769406,-460.0,0.00019178,2]
[365936941,1749991769428,-460.0,0.00019178,2]
[365936942,1749991769450,-460.0,0.00019178,2]
[365936943,1749991769472,-460.0,0.00019178,2]
[365936944,1749991769493,-460.0,0.00019178,2]
[365936945,1749991769516,-460.0,0.00019178,2]
[365936946,1749991769537,-460.0,0.00019178,2]
[365936947,1749991769559,-460.0,0.00019178,2]
[365936948,1749991769580,-460.0,0.00019178,2]
[365936949,1749991769601,-460.0,0.00019178,2]
[365936950,1749991769622,-460.0,0.00019178,2]
[365936951,1749991769644,-460.0,0.00019178,2]
[365936952,1749991769665,-460.0,0.00019178,2]
[365936953,1749991769686,-460.0,0.00019178,2]
[365936954,1749991769706,-464.87095308,0.00019178,2]
[365936955,1749991769727,-460.0,0.00019178,2]
[365936956,1749991769754,-460.0,0.00019178,2]
[365936957,1749991769775,-500.0,0.00019178,2]
[365936958,1749991769796,-500.0,0.00019178,2]
[365936959,1749991769817,-500.0,0.00019178,2]
[365936960,1749991769837,-500.0,0.00019178,2]
[365936961,1749991769858,-500.0,0.00019178,2]
[365936962,1749991769878,-460.0,0.00019178,2]
[365936963,1749991769899,-460.0,0.00019178,2]
[365936964,1749991769922,-460.0,0.00019178,2]
[365936965,1749991769943,-370.0,0.00019178,2]
[365936966,1749991769967,-641.87,0.00019178,2]
[365936967,1749991769988,-460.0,0.00019178,2]
[365936968,1749991770009,-460.0,0.00019178,2]
[365936969,1749991770030,-463.79981392,0.00019178,2]
[365936970,1749991770051,-460.0,0.00019178,2]
[365936971,1749991770074,-786.34,0.00019178,2]
[365936972,1749991770094,-433.26600835,0.00019178,2]
[365936973,1749991770115,-460.0,0.00019178,2]
[365936974,1749991770137,-500.0,0.00019178,2]
[365936975,1749991770157,-410.0,0.00019178,2]
[365936976,1749991770177,-557.74196008,0.00019178,2]
[365936977,1749991770197,-460.0,0.00019178,2]
[365936978,1749991770218,-460.0,0.00019178,2]
[365936979,1749991770238,-460.0,0.00019178,2]
[365936980,1749991770258,-411.37512455,0.00019178,2]
[365936981,1749991770282,-462.29,0.00019178,2]
[365936982,1749991770302,-460.0,0.00019178,2]
[365936983,1749991770323,-460.0,0.00019178,2]
[365936984,1749991770344,-460.0,0.00019178,2]
[365936985,1749991770366,-460.0,0.00019178,2]
[365936986,1749991770390,-460.0,0.00019178,2]
[365936987,1749991770411,-347.27002997,0.00019178,2]
[365936988,1749991770432,-460.0,0.00019178,2]
[365936989,1749991770457,-1051.34,0.00019178,2]
[365936990,1749991770481,-460.0,0.00019178,2]
[365936991,1749991770502,-436.14404459,0.00019178,2]
[365936992,1749991770524,-460.0,0.00019178,2]
[365936993,1749991770545,-460.0,0.00019178,2]
[365936994,1749991770568,-460.0,0.00019178,2]
[365936995,1749991770589,-246.74052382,0.00019178,2]
[365936996,1749991770612,-460.0,0.00019178,2]
[365936997,1749991770634,-460.0,0.00019178,2]
[365936998,1749991770655,-460.0,0.00019178,2]
[365936999,1749991770677,-1024.56,0.00019178,2]
[365937000,1749991770698,-460.0,0.00019178,2]
[365937001,1749991770719,-460.0,0.00019178,2]
[365937002,1749991770740,-460.0,0.00019178,2]
[365937003,1749991770761,-460.0,0.00019178,2]
[365937004,1749991770782,-460.0,0.00019178,2]
[365937005,1749991770802,-460.0,0.00019178,2]
[365937006,1749991770824,-460.0,0.00019178,2]
[365937007,1749991770848,-856.09,0.00019178,2]
[365937008,1749991770870,-460.29112544,0.00019178,2]
[365937009,1749991770890,-460.0,0.00019178,2]
[365937010,1749991770911,-460.0,0.00019178,2]
[365937011,1749991770931,-466.0754235,0.00019178,2]
[365937012,1749991770951,-513.84658708,0.00019178,2]
[365937013,1749991770973,-475.34466281,0.00019178,2]
[365937014,1749991770995,-460.0,0.00019178,2]
[365937015,1749991771015,-469.47656936,0.00019178,2]
[365937016,1749991771035,-437.1124755,0.00019178,2]
[365937017,1749991771056,-460.0,0.00019178,2]
[365937018,1749991771076,-460.0,0.00019178,2]
[365937019,1749991771097,-460.0,0.00019178,2]
[365937020,1749991771119,-460.0,0.00019178,2]
[365937021,1749991771140,-430.0,0.00019178,2]
[365937022,1749991771161,-460.0,0.00019178,2]
[365937023,1749991771181,-460.0,0.00019178,2]
[365937024,1749991771202,-460.0,0.00019178,2]
[365937025,1749991771222,-552.774134,0.00019178,2]
[365937026,1749991771364,-460.0,0.00019178,2]
[365937027,1749991771390,-354.45711979,0.00019178,2]
[365937028,1749991771411,-460.0,0.00019178,2]
[365937029,1749991771436,-460.0,0.00019178,2]
[365937030,1749991771458,-506.61,0.00019178,2]
[365937031,1749991771480,-438.11674702,0.00019178,2]
[365937032,1749991771502,-481.03973395,0.00019178,2]
[365937033,1749991771523,-460.0,0.00019178,2]
[365937034,1749991771544,-460.0,0.00019178,2]
[365937035,1749991771565,-460.0,0.00019178,2]
[365937036,1749991771586,-460.0,0.00019178,2]
[365937037,1749991771608,-460.0,0.00019178,2]
[365937038,1749991771630,-460.0,0.00019178,2]
[365937039,1749991771650,-370.0,0.00019178,2]
[365937040,1749991771670,-440.0,0.00019178,2]
[365937041,1749991771691,-460.0,0.00019178,2]
[365937042,1749991771711,-460.0,0.00019178,2]
[365937043,1749991771731,-460.0,0.00019178,2]
[365937044,1749991771752,-460.0,0.00019178,2]
[365937045,1749991771774,-460.0,0.00019178,2]
[365937046,1749991771796,-460.0,0.00019178,2]
[365937047,1749991771817,-460.0,0.00019178,2]
[365937048,1749991771838,-460.0,0.00019178,2]
[365937049,1749991771858,-469.94364602,0.00019178,2]
[365937050,1749991771880,-440.0,0.00019178,2]
[365937051,1749991771900,-460.0,0.00019178,2]
[365937052,1749991771920,-523.19367922,0.00019178,2]
[365937053,1749991771941,-185.05043185,0.00019178,2]
[365937054,1749991771962,-460.0,0.00019178,2]
[365937055,1749991771982,-460.0,0.00019178,2]
[365937056,1749991772003,-460.0,0.00019178,2]
[365937057,1749991772022,-460.0,0.00019178,2]
[365937058,1749991772047,-500.0,0.00019178,2]
[365937059,1749991772067,-564.09561067,0.00019178,2]
[365937060,1749991772088,-460.0,0.00019178,2]
[365937061,1749991772108,-500.0,0.00019178,2]
[365937062,1749991772130,-500.0,0.00019178,2]
[365937063,1749991772152,-500.0,0.00019178,2]
[365937064,1749991772173,-500.0,0.00019178,2]
[365937065,1749991772194,-500.0,0.00019178,2]
[365937066,1749991772215,-500.0,0.00019178,2]
[365937067,1749991772236,-500.0,0.00019178,2]
[365937068,1749991772257,-500.0,0.00019178,2]
[365937069,1749991772279,-500.0,0.00019178,2]
[365937070,1749991772300,-500.0,0.00019178,2]
[365937071,1749991772322,-500.0,0.00019178,2]
[365937072,1749991772344,-500.0,0.00019178,2]
[365937073,1749991772366,-500.0,0.00019178,2]
[365937074,1749991772391,-500.0,0.00019178,2]
[365937075,1749991772412,-500.0,0.00019178,2]
[365937076,1749991772434,-500.0,0.00019178,2]
[365937077,1749991772456,-500.0,0.00019178,2]
[365937078,1749991772479,-500.0,0.00019178,2]
[365937079,1749991772501,-500.0,0.00019178,2]
[365937080,1749991772523,-500.0,0.00019178,2]
[365937081,1749991772545,-500.0,0.00019178,2]
[365937082,1749991772567,-500.0,0.00019178,2]
[365937083,1749991772589,-500.0,0.00019178,2]
[365937084,1749991772611,-500.0,0.00019178,2]
[365937085,1749991772633,-500.0,0.00019178,2]
[365937086,1749991772655,-500.0,0.00019178,2]
[365937087,1749991772677,-500.0,0.00019178,2]
[365937088,1749991772699,-500.0,0.00019178,2]
[365937089,1749991772720,-500.0,0.00019178,2]